fUSD/lending_fUSD_20260601
["ID","MTS","AMOUNT","RATE_DAILY","PERIOD"]
[423610672,1780259461000,-300.0,0.00035469,2]
[423610664,1780259461000,-300.0,0.00035469,2]
[423610662,1780259461000,-1097.16968584,0.00035469,2]
[423610666,1780259461000,-300.0,0.00035469,2]
[423610667,1780259461000,-493.71853303,0.00035469,2]
[423610668,1780259461000,-435.63347121,0.00035469,2]
[423610674,1780259461000,-1069.16901834,0.00035469,2]
[423610643,1780259461000,-310.25089904,0.00035469,2]
[423610659,1780259461000,-300.0,0.00035469,2]
[423610644,1780259461000,-1636.24753201,0.00035469,2]
[423610620,1780259461000,-605.70713704,0.00035469,2]
[423610639,1780259461000,-866.17918798,0.00035469,2]
[423610622,1780259461000,-403.31610524,0.00035469,2]
[423610619,1780259461000,-300.0,0.00035469,2]
[423610613,1780259461000,-503.79722672,0.00035469,2]
[423610623,1780259461000,-1069.16901834,0.00035469,2]
[423610616,1780259461000,-493.71853303,0.00035469,2]
[423610678,1780259461000,-302.42365621,0.00035469,2]
[423610614,1780259461000,-300.0,0.00035469,2]
[423610617,1780259461000,-300.0,0.00035469,2]
[423610618,1780259461000,-300.0,0.00035469,2]
[423610615,1780259461000,-300.0,0.00035469,2]
[423610621,1780259461000,-300.0,0.00035469,2]
[423610624,1780259461000,-535.11946239,0.00035469,2]
[423610628,1780259461000,-300.0,0.00035469,2]
[423610626,1780259461000,-300.0,0.00035469,2]
[423610625,1780259461000,-727.57003954,0.00035469,2]
[423610635,1780259461000,-344.67640552,0.00035469,2]
[423610630,1780259461000,-300.0,0.00035469,2]
[423610627,1780259461000,-302.42365621,0.00035469,2]
[423610629,1780259461000,-301.20088581,0.00035469,2]
[423610634,1780259461000,-1264.80678045,0.00035469,2]
[423610631,1780259461000,-300.0,0.00035469,2]
[423610632,1780259461000,-300.0,0.00035469,2]
[423610633,1780259461000,-300.0,0.00035469,2]
[423610647,1780259461000,-300.0,0.00035469,2]
[423610649,1780259461000,-300.0,0.00035469,2]
[423610637,1780259461000,-300.0,0.00035469,2]
[423610648,1780259461000,-464.81458028,0.00035469,2]
[423610636,1780259461000,-527.99519721,0.00035469,2]
[423610638,1780259461000,-300.0,0.00035469,2]
[423610642,1780259461000,-1149.64153705,0.00035469,2]
[423610677,1780259461000,-442.89763408,0.00035469,2]
[423610697,1780259461000,-300.0,0.00035469,2]
[423610683,1780259461000,-300.0,0.00035469,2]
[423610709,1780259461000,-300.0,0.00035469,2]
[423610715,1780259461000,-300.0,0.00035469,2]
[423610714,1780259461000,-300.0,0.00035469,2]
[423610727,1780259461000,-301.20088581,0.00035469,2]
[423610726,1780259461000,-300.0,0.00035469,2]
[423610725,1780259461000,-302.42365621,0.00035469,2]
[423610717,1780259461000,-300.0,0.00035469,2]
[423610721,1780259461000,-403.31610524,0.00035469,2]
[423610716,1780259461000,-493.71853303,0.00035469,2]
[423610723,1780259461000,-535.11946239,0.00035469,2]
[423610722,1780259461000,-1069.16901834,0.00035469,2]
[423610724,1780259461000,-727.57003954,0.00035469,2]
[423610676,1780259461000,-727.57003954,0.00035469,2]
[423610720,1780259461000,-300.0,0.00035469,2]
[423610718,1780259461000,-300.0,0.00035469,2]
[423610728,1780259461000,-300.0,0.00035469,2]
[423610732,1780259461000,-1264.80678045,0.00035469,2]
[423610733,1780259461000,-344.67640552,0.00035469,2]
[423610737,1780259461000,-866.17918798,0.00035469,2]
[423610736,1780259461000,-300.0,0.00035469,2]
[423610730,1780259461000,-300.0,0.00035469,2]
[423610735,1780259461000,-300.0,0.00035469,2]
[423610734,1780259461000,-527.99519721,0.00035469,2]
[423610731,1780259461000,-300.0,0.00035469,2]
[423610738,1780259461000,-950.98229606,0.00035469,2]
[423610729,1780259461000,-300.0,0.00035469,2]
[423610739,1780259461000,-1800.99236666,0.00035469,2]
[423610741,1780259461000,-310.25089904,0.00035469,2]
[423610740,1780259461000,-1149.64153705,0.00035469,2]
[423610711,1780259461000,-1097.16968584,0.00035469,2]
[423610708,1780259461000,-300.0,0.00035469,2]
[423610719,1780259461000,-605.70713704,0.00035469,2]
[423610712,1780259461000,-300.0,0.00035469,2]
[423610713,1780259461000,-300.0,0.00035469,2]
[423610680,1780259461000,-301.20088581,0.00035469,2]
[423610681,1780259461000,-300.0,0.00035469,2]
[423610679,1780259461000,-300.0,0.00035469,2]
[423610682,1780259461000,-300.0,0.00035469,2]
[423610685,1780259461000,-1264.80678045,0.00035469,2]
[423610686,1780259461000,-344.67640552,0.00035469,2]
[423610684,1780259461000,-300.0,0.00035469,2]
[423610699,1780259461000,-300.0,0.00035469,2]
[423610698,1780259461000,-464.81458028,0.00035469,2]
[423610687,1780259461000,-527.99519721,0.00035469,2]
[423610691,1780259461000,-950.98229606,0.00035469,2]
[423610689,1780259461000,-300.0,0.00035469,2]
[423610690,1780259461000,-866.17918798,0.00035469,2]
[423610675,1780259461000,-535.11946239,0.00035469,2]
[423610688,1780259461000,-300.0,0.00035469,2]
[423610692,1780259461000,-1800.99236666,0.00035469,2]
[423610701,1780259461000,-452.85549676,0.00035469,2]
[423610707,1780259461000,-310.50110747,0.00035469,2]
[423610706,1780259461000,-485.1231417,0.00035469,2]
[423610704,1780259461000,-300.0,0.00035469,2]
[423610705,1780259461000,-300.0,0.00035469,2]
[423610703,1780259461000,-300.0,0.00035469,2]
[423610710,1780259461000,-300.0,0.00035469,2]
[423610700,1780259461000,-578.77492127,0.00035469,2]
[423610695,1780259461000,-1636.24753201,0.00035469,2]
[423610694,1780259461000,-310.25089904,0.00035469,2]
[423610696,1780259461000,-595.21497888,0.00035469,2]
[423610702,1780259461000,-300.0,0.00035469,2]
[423610693,1780259461000,-1149.64153705,0.00035469,2]
[423610775,1780259462000,-300.0,0.00035469,2]
[423610785,1780259462000,-950.98229606,0.00035469,2]
[423610786,1780259462000,-1800.99236666,0.00035469,2]
[423610784,1780259462000,-866.17918798,0.00035469,2]
[423610783,1780259462000,-304.25201973,0.00035469,2]
[423610782,1780259462000,-308.29890714,0.00035469,2]
[423610770,1780259462000,-535.11946239,0.00035469,2]
[423610781,1780259462000,-527.99519721,0.00035469,2]
[423610776,1780259462000,-300.0,0.00035469,2]
[423610779,1780259462000,-1264.80678045,0.00035469,2]
[423610773,1780259462000,-300.0,0.00035469,2]
[423610787,1780259462000,-1149.64153705,0.00035469,2]
[423610780,1780259462000,-344.67640552,0.00035469,2]
[423610788,1780259462000,-310.25089904,0.00035469,2]
[423610797,1780259462000,-300.0,0.00035469,2]
[423610789,1780259462000,-1636.24753201,0.00035469,2]
[423610792,1780259462000,-464.81458028,0.00035469,2]
[423610791,1780259462000,-300.0,0.00035469,2]
[423610806,1780259462000,-436.5,0.00035471,120]
[423610796,1780259462000,-300.0,0.00035469,2]
[423610795,1780259462000,-452.85549676,0.00035469,2]
[423610798,1780259462000,-300.0,0.00035469,2]
[423610802,1780259462000,-300.0,0.00035469,2]
[423610793,1780259462000,-300.0,0.00035469,2]
[423610794,1780259462000,-578.77492127,0.00035469,2]
[423610799,1780259462000,-300.0,0.00035469,2]
[423610803,1780259462000,-300.0,0.00035469,2]
[423610800,1780259462000,-485.1231417,0.00035469,2]
[423610771,1780259462000,-727.57003954,0.00035469,2]
[423610790,1780259462000,-595.21497888,0.00035469,2]
[423610777,1780259462000,-300.0,0.00035469,2]
[423610804,1780259462000,-300.0,0.00035469,2]
[423610772,1780259462000,-302.42365621,0.00035469,2]
[423610743,1780259462000,-595.21497888,0.00035469,2]
[423610753,1780259462000,-485.1231417,0.00035469,2]
[423610754,1780259462000,-310.50110747,0.00035469,2]
[423610742,1780259462000,-1636.24753201,0.00035469,2]
[423610749,1780259462000,-300.0,0.00035469,2]
[423610744,1780259462000,-300.0,0.00035469,2]
[423610745,1780259462000,-464.81458028,0.00035469,2]
[423610746,1780259462000,-300.0,0.00035469,2]
[423610751,1780259462000,-300.0,0.00035469,2]
[423610748,1780259462000,-452.85549676,0.00035469,2]
[423610747,1780259462000,-578.77492127,0.00035469,2]
[423610750,1780259462000,-300.0,0.00035469,2]
[423610752,1780259462000,-300.0,0.00035469,2]
[423610755,1780259462000,-300.0,0.00035469,2]
[423610758,1780259462000,-1097.16968584,0.00035469,2]
[423610757,1780259462000,-300.0,0.00035469,2]
[423610756,1780259462000,-300.0,0.00035469,2]
[423610766,1780259462000,-605.70713704,0.00035469,2]
[423610759,1780259462000,-300.0,0.00035469,2]
[423610760,1780259462000,-300.0,0.00035469,2]
[423610767,1780259462000,-300.0,0.00035469,2]
[423610762,1780259462000,-300.0,0.00035469,2]
[423610765,1780259462000,-300.0,0.00035469,2]
[423610763,1780259462000,-493.71853303,0.00035469,2]
[423610761,1780259462000,-300.0,0.00035469,2]
[423610764,1780259462000,-300.0,0.00035469,2]
[423610768,1780259462000,-403.31610524,0.00035469,2]
[423610774,1780259462000,-301.20088581,0.00035469,2]
[423610769,1780259462000,-1069.16901834,0.00035469,2]
[423610778,1780259462000,-300.0,0.00035469,2]
[423610801,1780259462000,-310.50110747,0.00035469,2]
[423610810,1780259462000,-5800.0,0.00035565,2]
[423610817,1780259462000,-171161.65041697,0.0003561,2]
[423610836,1780259462000,-288.0,0.00035672,30]
[423610842,1780259462000,-200.61245889,0.00035691,2]
[423610840,1780259462000,-1196.0,0.00035672,30]
[423610844,1780259462000,-681.7626,0.00035837,2]
[423610841,1780259462000,-615.0,0.00035681,11]
[423610843,1780259462000,-281.33945383,0.00035719,2]
[423610848,1780259462000,-150.0,0.00035899,2]
[423610850,1780259462000,-1330.54717279,0.00035934,2]
[423610856,1780259462000,-1428.71364209,0.0003594,2]
[423610849,1780259462000,-1264.46376147,0.00035934,2]
[423610853,1780259462000,-2081.22352817,0.0003594,2]
[423610854,1780259462000,-2248.7162776,0.0003594,2]
[423610860,1780259462000,-1266.96371416,0.00035949,2]
[423610855,1780259462000,-2160.9835966,0.0003594,2]
[423610859,1780259462000,-1335.07851389,0.0003594,2]
[423610858,1780259462000,-1254.74802514,0.0003594,2]
[423610857,1780259462000,-1230.45001398,0.0003594,2]
[423610852,1780259462000,-1287.25823512,0.0003594,2]
[423610851,1780259462000,-1844.30200819,0.0003594,2]
[423610861,1780259462000,-150.0,0.00035951,2]
[423610862,1780259462000,-169.79743012,0.00035951,2]
[423610863,1780259462000,-400.0,0.00035951,2]
[423610868,1780259462000,-150.0,0.00035951,2]
[423610864,1780259462000,-400.0,0.00035951,2]
[423610869,1780259462000,-540.237503,0.00035974,120]
[423610867,1780259462000,-150.0,0.00035951,2]
[423610871,1780259462000,-462.7321229,0.00036,2]
[423610866,1780259462000,-407.0,0.00035951,2]
[423610805,1780259462000,-1676.35,0.0003547,2]
[423610839,1780259462000,-156.0,0.00035672,30]
[423610838,1780259462000,-545.0,0.00035672,30]
[423610870,1780259462000,-334.54266907,0.00036,120]
[423610837,1780259462000,-186.0,0.00035672,30]
[423610811,1780259462000,-5800.0,0.00035574,2]
[423610865,1780259462000,-407.0,0.00035951,2]
[423610809,1780259462000,-200.0,0.0003549,5]
[423610807,1780259462000,-165.15,0.00035479,120]
[423610808,1780259462000,-200.0,0.00035489,5]
[423610820,1780259462000,-5800.0,0.00035616,2]
[423610818,1780259462000,-4518.05742312,0.0003561,2]
[423610812,1780259462000,-5800.0,0.00035582,2]
[423610847,1780259462000,-5839.41,0.00035891,2]
[423610814,1780259462000,-5800.0,0.00035599,2]
[423610815,1780259462000,-151.0,0.00035607,14]
[423610816,1780259462000,-5800.0,0.00035608,2]
[423610813,1780259462000,-5800.0,0.00035591,2]
[423610821,1780259462000,-1001.70404841,0.00035616,30]
[423610824,1780259462000,-150.0,0.00035616,2]
[423610819,1780259462000,-651.44320561,0.00035616,60]
[423610823,1780259462000,-150.0,0.00035616,2]
[423610846,1780259462000,-350.0,0.0003589,5]
[423610825,1780259462000,-260.8386003,0.00035616,2]
[423610834,1780259462000,-158.0,0.00035672,30]
[423610845,1780259462000,-3906.77,0.00035882,30]
[423610835,1780259462000,-779.0,0.00035672,30]
[423610830,1780259462000,-265.0,0.00035669,30]
[423610831,1780259462000,-1097.0,0.00035669,30]
[423610829,1780259462000,-507.0,0.00035669,30]
[423610833,1780259462000,-375.05,0.0003567,80]
[423610826,1780259462000,-231.54,0.00035616,2]
[423610827,1780259462000,-151.686969,0.00035616,2]
[423610828,1780259462000,-387.0,0.00035669,30]
[423610822,1780259462000,-150.0,0.00035616,2]
[423610832,1780259462000,-864.0,0.00035669,30]
[423610914,1780259463000,-152.0,0.00036382,7]
[423610915,1780259463000,-152.0,0.00036382,7]
[423610913,1780259463000,-152.0,0.00036382,7]
[423610924,1780259463000,-763.1,0.00036509,30]
[423610912,1780259463000,-300.0,0.00036382,7]
[423610901,1780259463000,-375.05,0.0003621,110]
[423610904,1780259463000,-1219.75,0.00036362,60]
[423610909,1780259463000,-909.05,0.00036368,120]
[423610907,1780259463000,-4796.5,0.00036362,60]
[423610910,1780259463000,-445.43,0.00036368,120]
[423610906,1780259463000,-737.12,0.00036362,60]
[423610905,1780259463000,-537.13,0.00036362,60]
[423610917,1780259463000,-152.0,0.00036382,7]
[423610930,1780259463000,-239.535013,0.00036605,7]
[423610916,1780259463000,-152.0,0.00036382,7]
[423610918,1780259463000,-240.0,0.00036382,7]
[423610923,1780259463000,-1200.00099,0.000365,120]
[423610922,1780259463000,-34745.0,0.000364,30]
[423610921,1780259463000,-4999.999999,0.000364,120]
[423610919,1780259463000,-154.0,0.00036382,7]
[423610925,1780259463000,-204.04336173,0.0003652,2]
[423610926,1780259463000,-16385.8472,0.00036571,30]
[423610935,1780259463000,-615.0,0.00036748,12]
[423610932,1780259463000,-292.86,0.00036672,30]
[423610929,1780259463000,-638.64516912,0.00036602,2]
[423610937,1780259463000,-375.05,0.0003676,120]
[423610934,1780259463000,-681.7626,0.00036733,2]
[423610911,1780259463000,-1546.0,0.00036382,7]
[423610920,1780259463000,-311.8,0.00036391,120]
[423610908,1780259463000,-1590.0,0.00036366,11]
[423610899,1780259463000,-512.3,0.00036153,30]
[423610900,1780259463000,-210.659953,0.000362,12]
[423610931,1780259463000,-160.7,0.00036672,60]
[423610873,1780259463000,-862.7794474,0.00036,2]
[423610872,1780259463000,-25129.79864492,0.00036,2]
[423610876,1780259463000,-502.62444396,0.00036,120]
[423610885,1780259463000,-229.93304734,0.00036,120]
[423610882,1780259463000,-180.57761234,0.00036,120]
[423610874,1780259463000,-190.60357362,0.00036,120]
[423610880,1780259463000,-273.16186607,0.00036,120]
[423610884,1780259463000,-203.01632964,0.00036,120]
[423610883,1780259463000,-973.5023997,0.00036,120]
[423610881,1780259463000,-179.91822741,0.00036,120]
[423610875,1780259463000,-163.46624608,0.00036,120]
[423610877,1780259463000,-343.80148986,0.00036,120]
[423610886,1780259463000,-1550.44220446,0.00036,120]
[423610878,1780259463000,-166.32529734,0.00036,120]
[423610879,1780259463000,-1133.4284204,0.00036,120]
[423610888,1780259463000,-1127.71266082,0.00036,120]
[423610898,1780259463000,-7244.9602,0.00036137,50]
[423610890,1780259463000,-2474.04258438,0.00036,120]
[423610893,1780259463000,-1354.48788215,0.00036,120]
[423610889,1780259463000,-703.41061854,0.00036,120]
[423610891,1780259463000,-1071.12217871,0.00036,120]
[423610894,1780259463000,-1298.59053919,0.00036,120]
[423610892,1780259463000,-1106.55898899,0.00036,120]
[423610887,1780259463000,-1350.21797627,0.00036,120]
[423610897,1780259463000,-1590.0,0.00036073,11]
[423610895,1780259463000,-340.5,0.00036,30]
[423610896,1780259463000,-800.0,0.00036,2]
[423610903,1780259463000,-636.34,0.00036237,7]
[423610902,1780259463000,-615.0,0.00036214,11]
[423610936,1780259463000,-163.0,0.0003675,11]
[423610928,1780259463000,-5839.43,0.00036576,2]
[423610997,1780259463000,-615.0,0.00037282,13]
[423610967,1780259463000,-365.0,0.00037,2]
[423610974,1780259463000,-181.82,0.00037,2]
[423610970,1780259463000,-636.09,0.00037,30]
[423610971,1780259463000,-3347.22,0.00037,14]
[423610973,1780259463000,-150.0,0.00037,2]
[423610968,1780259463000,-168.9142955,0.00037,2]
[423610969,1780259463000,-4500.0,0.00037,2]
[423610972,1780259463000,-3347.22,0.00037,14]
[423610978,1780259463000,-160.7,0.00037072,60]
[423610979,1780259463000,-234676.59872311,0.000371,2]
[423610987,1780259463000,-1328.27659266,0.0003711,30]
[423610986,1780259463000,-2000.0,0.000371,7]
[423610984,1780259463000,-1106.55898899,0.000371,120]
[423610982,1780259463000,-2474.04258438,0.000371,120]
[423610989,1780259463000,-160.7,0.00037172,60]
[423610981,1780259463000,-1127.71266082,0.000371,120]
[423610990,1780259463000,-175.28622892,0.000372,120]
[423610980,1780259463000,-1550.44220446,0.000371,120]
[423610985,1780259463000,-1354.48788215,0.000371,120]
[423610988,1780259463000,-1934.38338736,0.0003711,30]
[423610991,1780259463000,-175.28622889,0.000372,120]
[423610994,1780259463000,-175.28622889,0.000372,120]
[423610992,1780259463000,-175.28622889,0.000372,120]
[423610995,1780259463000,-302.493871,0.00037222,18]
[423610993,1780259463000,-175.28622889,0.000372,120]
[423610998,1780259463000,-300.0,0.00037299,2]
[423610999,1780259463000,-300.0,0.00037299,2]
[423610933,1780259463000,-224.98060826,0.00036714,60]
[423610996,1780259463000,-160.7,0.00037272,60]
[423610964,1780259463000,-333.0,0.00037,120]
[423610966,1780259463000,-4987.20765738,0.00037,120]
[423610983,1780259463000,-1071.12217871,0.000371,120]
[423610976,1780259463000,-1590.0,0.00037033,11]
[423610927,1780259463000,-727.54,0.00036574,120]
[423610975,1780259463000,-172.0,0.00037,30]
[423610949,1780259463000,-160.7,0.00036972,60]
[423610950,1780259463000,-5000.0,0.00036976,2]
[423610938,1780259463000,-160.7,0.00036772,60]
[423610945,1780259463000,-250.52351855,0.00036899,3]
[423610943,1780259463000,-350.0,0.00036849,5]
[423610940,1780259463000,-334.48622721,0.00036785,120]
[423610941,1780259463000,-1641.92098271,0.000368,2]
[423610948,1780259463000,-774.28,0.0003691,120]
[423610944,1780259463000,-160.7,0.00036872,60]
[423610942,1780259463000,-428.75275885,0.00036822,2]
[423610946,1780259463000,-2000.0,0.0003691,120]
[423610947,1780259463000,-2012.0,0.0003691,120]
[423610951,1780259463000,-5000.0,0.00036976,2]
[423610939,1780259463000,-3271.95164303,0.00036785,120]
[423610953,1780259463000,-5000.0,0.00036976,2]
[423610954,1780259463000,-5000.0,0.00036976,2]
[423610965,1780259463000,-460.0,0.00037,30]
[423610952,1780259463000,-5000.0,0.00036976,2]
[423610955,1780259463000,-5000.0,0.00036976,2]
[423610963,1780259463000,-250.0,0.00036976,2]
[423610961,1780259463000,-250.0,0.00036976,2]
[423610977,1780259463000,-163.0,0.00037033,11]
[423610960,1780259463000,-250.0,0.00036976,2]
[423610962,1780259463000,-250.0,0.00036976,2]
[423610958,1780259463000,-250.0,0.00036976,2]
[423610957,1780259463000,-266.58690163,0.00036976,2]
[423610956,1780259463000,-5413.11778987,0.00036976,2]
[423610959,1780259463000,-250.0,0.00036976,2]
[423611041,1780259464000,-400.0,0.00037449,2]
[423611053,1780259464000,-681.7626,0.00037629,2]
[423611042,1780259464000,-407.0,0.00037449,2]
[423611052,1780259464000,-386.0,0.00037615,2]
[423611038,1780259464000,-50000.0,0.00037441,2]
[423611037,1780259464000,-436.5,0.00037441,120]
[423611035,1780259464000,-592.0,0.0003744,3]
[423611036,1780259464000,-1676.79,0.0003744,2]
[423611034,1780259464000,-169.465949,0.00037438,14]
[423611032,1780259464000,-274.93,0.00037411,120]
[423611029,1780259464000,-250.0,0.00037373,2]
[423611039,1780259464000,-160.16444474,0.00037449,2]
[423611045,1780259464000,-402.994,0.000375,120]
[423611049,1780259464000,-1200.00099,0.000376,120]
[423611048,1780259464000,-4418.72541808,0.0003759,2]
[423611050,1780259464000,-1845.3599,0.000376,120]
[423611047,1780259464000,-160.7,0.00037572,60]
[423611043,1780259464000,-150.0,0.00037449,2]
[423611031,1780259464000,-355.0,0.00037381,2]
[423611044,1780259464000,-160.7,0.00037472,60]
[423611051,1780259464000,-34745.0,0.000376,30]
[423611054,1780259464000,-843.767474,0.00037629,7]
[423611056,1780259464000,-843.767474,0.00037629,7]
[423611055,1780259464000,-843.767474,0.00037629,7]
[423611058,1780259464000,-3906.77,0.00037646,30]
[423611057,1780259464000,-843.767482,0.00037629,7]
[423611063,1780259464000,-1400.0,0.00037688,60]
[423611046,1780259464000,-1000.0,0.00037541,60]
[423611033,1780259464000,-150.0,0.00037438,120]
[423611064,1780259464000,-500.0,0.00037688,60]
[423611030,1780259464000,-250.0,0.00037373,2]
[423611003,1780259464000,-300.0,0.00037299,2]
[423611002,1780259464000,-300.0,0.00037299,2]
[423611001,1780259464000,-300.0,0.00037299,2]
[423611000,1780259464000,-300.0,0.00037299,2]
[423611005,1780259464000,-375.05,0.000373,60]
[423611004,1780259464000,-311.6,0.00037299,2]
[423611006,1780259464000,-261.60078704,0.000373,30]
[423611015,1780259464000,-160.7,0.00037372,60]
[423611008,1780259464000,-291.78153606,0.000373,30]
[423611007,1780259464000,-291.78153607,0.000373,30]
[423611009,1780259464000,-291.78153606,0.000373,30]
[423611010,1780259464000,-150.0,0.00037325,2]
[423611012,1780259464000,-2000.0,0.00037365,2]
[423611011,1780259464000,-6732.367104,0.00037326,2]
[423611013,1780259464000,-10000.0,0.00037365,2]
[423611014,1780259464000,-163.0,0.00037365,7]
[423611017,1780259464000,-5000.0,0.00037373,2]
[423611027,1780259464000,-250.0,0.00037373,2]
[423611028,1780259464000,-250.0,0.00037373,2]
[423611016,1780259464000,-150.0,0.00037373,120]
[423611022,1780259464000,-5000.0,0.00037373,2]
[423611018,1780259464000,-5000.0,0.00037373,2]
[423611021,1780259464000,-5000.0,0.00037373,2]
[423611024,1780259464000,-250.0,0.00037373,2]
[423611020,1780259464000,-5000.0,0.00037373,2]
[423611025,1780259464000,-250.0,0.00037373,2]
[423611026,1780259464000,-250.0,0.00037373,2]
[423611019,1780259464000,-5000.0,0.00037373,2]
[423611023,1780259464000,-5000.0,0.00037373,2]
[423611040,1780259464000,-150.0,0.00037449,2]
[423611059,1780259464000,-1273.0,0.0003766,2]
[423611075,1780259464000,-250.0,0.00037771,2]
[423611062,1780259464000,-160.7,0.00037672,60]
[423611095,1780259464000,-386.0,0.00037883,2]
[423611097,1780259464000,-2595.71597365,0.000379,2]
[423611098,1780259464000,-432.0,0.00037907,2]
[423611096,1780259464000,-386.0,0.0003789,2]
[423611100,1780259464000,-1546.0,0.00037955,7]
[423611099,1780259464000,-389.0,0.00037946,2]
[423611101,1780259464000,-389.0,0.00037958,2]
[423611105,1780259464000,-1298.64,0.00037974,7]
[423611107,1780259464000,-377.80723687,0.00038,10]
[423611106,1780259464000,-389.0,0.00037994,2]
[423611109,1780259464000,-221.0,0.00038,120]
[423611117,1780259464000,-850.0,0.00038,2]
[423611116,1780259464000,-3347.22,0.00038,14]
[423611104,1780259464000,-160.70608255,0.00037972,60]
[423611108,1780259464000,-4856.20670434,0.00038,10]
[423611118,1780259464000,-2357.374,0.00038019,50]
[423611111,1780259464000,-460.0,0.00038,30]
[423611114,1780259464000,-250.0,0.00038,120]
[423611115,1780259464000,-2000.0,0.00038,38]
[423611113,1780259464000,-29075.74249539,0.00038,20]
[423611112,1780259464000,-152.0,0.00038,120]
[423611120,1780259464000,-389.0,0.00038038,2]
[423611119,1780259464000,-350.0,0.00038031,9]
[423611122,1780259464000,-389.0,0.00038071,2]
[423611060,1780259464000,-3639.0,0.0003766,2]
[423611123,1780259464000,-1590.0,0.00038084,11]
[423611124,1780259464000,-389.0,0.00038088,2]
[423611125,1780259464000,-8830.22570797,0.00038111,2]
[423611110,1780259464000,-333.0,0.00038,120]
[423611094,1780259464000,-160.7,0.00037872,60]
[423611121,1780259464000,-386.0,0.00038044,2]
[423611093,1780259464000,-389.0,0.00037871,2]
[423611103,1780259464000,-389.0,0.00037963,2]
[423611065,1780259464000,-500.0,0.00037688,60]
[423611067,1780259464000,-5000.0,0.00037771,2]
[423611077,1780259464000,-250.0,0.00037771,2]
[423611078,1780259464000,-250.0,0.00037771,2]
[423611066,1780259464000,-150.0,0.00037694,2]
[423611070,1780259464000,-5000.0,0.00037771,2]
[423611073,1780259464000,-250.0,0.00037771,2]
[423611069,1780259464000,-5000.0,0.00037771,2]
[423611068,1780259464000,-5000.0,0.00037771,2]
[423611071,1780259464000,-5000.0,0.00037771,2]
[423611072,1780259464000,-5000.0,0.00037771,2]
[423611074,1780259464000,-250.0,0.00037771,2]
[423611076,1780259464000,-250.0,0.00037771,2]
[423611061,1780259464000,-1356.0,0.0003766,2]
[423611082,1780259464000,-3920.43,0.000378,2]
[423611079,1780259464000,-160.7,0.00037772,60]
[423611092,1780259464000,-386.0,0.00037857,2]
[423611089,1780259464000,-3221.58609734,0.00037818,2]
[423611086,1780259464000,-350.0,0.00037808,5]
[423611088,1780259464000,-615.0,0.00037816,13]
[423611087,1780259464000,-340.0,0.00037813,2]
[423611102,1780259464000,-319.0,0.00037961,2]
[423611090,1780259464000,-375.05,0.0003784,86]
[423611081,1780259464000,-11761.32,0.000378,2]
[423611084,1780259464000,-151.0,0.000378,7]
[423611091,1780259464000,-446.0,0.00037843,2]
[423611080,1780259464000,-7840.87,0.000378,2]
[423611083,1780259464000,-7840.88,0.000378,2]
[423611085,1780259464000,-151.0,0.000378,7]
[423611153,1780259465000,-1546.0,0.00038152,7]
[423611167,1780259465000,-153.0,0.00038152,7]
[423611157,1780259465000,-1546.0,0.00038152,7]
[423611161,1780259465000,-151.0,0.00038152,7]
[423611159,1780259465000,-151.0,0.00038152,7]
[423611164,1780259465000,-151.0,0.00038152,7]
[423611168,1780259465000,-153.0,0.00038152,7]
[423611169,1780259465000,-153.0,0.00038152,7]